Cogmind - Beta 16 @@@ ROGUE MODE // 2025.11.14 @ 19:55:02 // Winter2019/RPGLIKE Player: GFYguy Result: Destroyed by H-61 Shepherd with Heavy Assault Cannon Performance ------------- Evolutions (2) 1000 Regions Visited (3) 600 Robots Destroyed (31) 155 Value Destroyed (944) 944 Prototype IDs (3) 60 Alien Tech Used (0) 0 Bonus (0) 0 TOTAL SCORE: 2759 Bonus ------- None Cogmind --------- Core Integrity 0/750 Matter 105/300 Energy 148/150 System Corruption 4% Temperature Cool (7) Movement Hovering (42) Location -8/Materials Parts ------- > --- POWER (1) -------- Light Angular Momentum Engine > --- PROPULSION (3) --- Aerolev Unit Aerolev Unit Aerolev Unit > --- UTILITY (5) ------ Improved Sensor Array Improved Signal Interpreter Improved Targeting Computer Improved Targeting Computer Hardlight Generator > --- WEAPON (2) ------- Improved Assault Rifle Improved Assault Rifle > --- INVENTORY (2) ---- Aerolev Unit Reaction Control System Peak State ------------ > --- POWER ------------ Light Angular Momentum Engine > --- PROPULSION ------- Aerolev Unit Aerolev Unit Aerolev Unit > --- UTILITY ---------- Advanced Visual Processing Unit Improved Sensor Array Improved Signal Interpreter Improved Targeting Computer Improved Targeting Computer > --- WEAPON ----------- Heavy Laser Improved Assault Rifle > --- INVENTORY -------- Protomatter Hardlight Generator [Rating: 37] Favorites ----------- Power Reinforced Ion Engine Engine Reinforced Ion Engine Propulsion Aluminum Leg Leg Aluminum Leg Hover Unit Aerolev Unit Utility Improved Targeting Computer Device Improved Heat Sink Processor Improved Targeting Computer Hackware System Shield Weapon Particle Gun Energy Gun Particle Gun Ballistic Gun Improved Assault Rifle Impact Weapon Great Maul Slashing Weapon Ripper Build | -11 -10 -10 -8 ------- Run | Yrd Mat Sub Mat Slots Evolved 7 | 1 2 . 4 Power . | . . . . Propulsion 2 | 1 . . 1 Utility 4 | . 1 . 3 Weapon 1 | . 1 . . Parts Attached 33 | 4 3 2 24 Power 5 | 1 1 . 3 Engine 5 | 1 1 . 3 Core . | . . . . Reactor . | . . . . Propulsion 8 | 2 . . 6 Treads . | . . . . Leg 5 | 2 . . 3 Wheel . | . . . . Hover 3 | . . . 3 Flight . | . . . . Utility 10 | . . 2 8 Device 5 | . . 2 3 Storage . | . . . . Processor 4 | . . . 4 Hackware 1 | . . . 1 Protection . | . . . . Artifact . | . . . . Weapon 10 | 1 2 . 7 Energy Gun 5 | . 2 . 3 Energy Cannon . | . . . . Ballistic Gun 3 | 1 . . 2 Ballistic Cannon . | . . . . Launcher . | . . . . Special Weapon . | . . . . Impact Weapon 1 | . . . 1 Slashing Weapon 1 | . . . 1 Piercing Weapon . | . . . . Special Melee Weapon . | . . . . Unidentified Prototypes 3 | . . . 3 Parts Lost . | . . . . Power . | . . . . Propulsion . | . . . . Utility . | . . . . Weapon . | . . . . Highest Loss Streak . | . . . . To Critical Strikes . | . . . . Average Backups 1 | . 1 2 1 Power . | . . . . Propulsion . | . . . . Utility . | . . . . Weapon 1 | . 1 2 . Tool/Special . | . . . . Unused Backups 4 | . . 1 3 Power . | . . . . Propulsion 2 | . . . 2 Utility 1 | . . . 1 Weapon 1 | . . 1 . Tool/Special . | . . . . Average Slot Usage (%) 92 | . 69 90 98 Engine 12 | . 14 14 10 Leg 22 | . 28 28 18 Hover 2 | . . . 4 Device 17 | . . 18 20 Processor 10 | . . . 19 Hackware 1 | . . . 3 Energy Gun 20 | . 25 28 13 Ballistic Gun 3 | . 1 . 6 Peak Build Rating 37 | 4 8 13 37 Average Rating 17 | 2 7 11 23 On Entrance 6 | . 4 8 13 Avg Prop Armor Cover (%) . | . . . . Naked Turns . | . . . . Heaviest Build 23 | 6 16 19 23 Greatest Support 38 | 20 20 20 38 Greatest Overweight (x) 1 | . . . 1 Average Overweight (x) . | . . . . Largest Inventory Capacity 2 | . 2 2 2 Average Capacity 1 | . 1 2 2 Most Carried 2 | . 2 2 2 Average Carried 1 | . 1 1 1 Final Capacity 2 | . 2 2 2 Final Carried 2 | . 2 2 2 Class Distribution -------------------- 88% | Mutant 11% | Skirmisher Dominant Class ---------------- Mutant | -10/Materials Mutant | -10/Subcaves Mutant | -8/Materials Resources | -11 -10 -10 -8 ----------- Run | Yrd Mat Sub Mat Matter Collected 695 | 240 30 20 405 Remotely . | . . . . Salvage Created 836 | . . 60 776 Parts 67 | . . 6 61 Haulers Intercepted 4 | . . . 4 Recyclers Shooed . | . . . . Parts Field Recycled . | . . . . Retrieved Matter . | . . . . Parts Self-Destructed 13 | . . 13 . Prevented . | . . . . Parts Restored . | . . . . Kills | -11 -10 -10 -8 ------- Run | Yrd Mat Sub Mat Combat Hostiles Destroyed 21 | . . 2 19 Melee 2 | . . . 2 Guns 18 | . . 2 16 Classes Destroyed 10 | . . 1 9 Worker 1 | . . . 1 Builder 1 | . . . 1 Hauler 4 | . . . 4 Operator 1 | . . . 1 Watcher 3 | . . . 3 Swarmer 4 | . . . 4 Grunt 8 | . . . 8 Duelist 1 | . . . 1 Sentry 6 | . . . 6 Subdweller 2 | . . 2 . Best Kill Streak 7 | . . 1 7 Combat Bots Only 5 | . . 1 5 Max Kills in Single Turn 1 | . . 1 1 Gunslinging . | . . . . Exploded . | . . . . Melee 1 | . . . 1 Uniques/NPCs Destroyed . | . . . . Combat | -11 -10 -10 -8 -------- Run | Yrd Mat Sub Mat Hostile Shots Fired 149 | . 6 13 130 Missed 50 | . 4 3 43 Hits 99 | . 2 10 87 Melee 1 | . . . 1 Projectile 98 | . 2 10 86 Critical Strikes 4 | . . . 4 Damage Taken 1846 | . 21 207 1618 Core 1502 | . 19 167 1316 Absorbed by Shields 160 | . . . 160 Redirected to Core 1229 | . 8 147 1074 Core Remaining (%) 99 | 100 . 98 . Volleys Fired 107 | . . 10 97 Largest 2 | . . 2 2 Hottest 130 | . . 130 130 Shots Fired 200 | . . 20 180 Gun 200 | . . 20 180 Cannon . | . . . . Launcher . | . . . . Special . | . . . . Kinetic 100 | . . . 100 Thermal 100 | . . 20 80 Explosive . | . . . . Electromagnetic . | . . . . Robot Hit Streak 18 | . . 9 18 Robot Miss Streak 3 | . . 2 3 Penetration Max . | . . . . Secondary Targets . | . . . . Shots Hit Robots 150 | . . 13 137 Core Hits 60 | . . 4 56 Critical Kills 2 | . . . 2 Critical Parts Destroyed . | . . . . Critical Strikes 4 | . . . 4 Burn 2 | . . . 2 Smash 2 | . . . 2 Melee Attacks 6 | . . . 6 Impact 4 | . . . 4 Slashing 2 | . . . 2 Piercing . | . . . . Sneak Attacks 1 | . . . 1 Combat Hostiles . | . . . . Follow-up Attacks . | . . . . Damage Inflicted 2576 | . . 188 2388 Guns 2328 | . . 188 2140 Cannons . | . . . . Explosions . | . . . . Melee 248 | . . . 248 Ramming . | . . . . Kinetic 1205 | . . . 1205 Thermal 1123 | . . 188 935 Explosive . | . . . . Electromagnetic . | . . . . Impact 248 | . . . 248 Slashing . | . . . . Piercing . | . . . . Highest Corruption 4 | . . . 4 Average Corruption 2 | . . . 2 Corruption Purged . | . . . . Corruption Blocked . | . . . . Effects 15 | . . . 15 Message Errors 2 | . . . 2 Matter Fused 3 | . . . 3 Heat Flow Errors 4 | . . . 4 Energy Discharges 1 | . . . 1 Data Loss (minor) 1 | . . . 1 Data Loss (major) 2 | . . . 2 Alerts 1 | . . . 1 Weapon Failures 1 | . . . 1 Overload Shots . | . . . . Overflow Damage 62 | . . . 62 Projectiles . | . . . . Explosions . | . . . . Melee 62 | . . . 62 Knockbacks 1 | . . . 1 Impact 1 | . . . 1 Kinetic . | . . . . Secondary . | . . . . Self-Inflicted Damage . | . . . . Shots . | . . . . Rammed . | . . . . Targets Rammed 1 | . . . 1 Kicked 1 | . . . 1 Crushed . | . . . . Highest Temperature 253 | . . . 253 Average Temperature 93 | . . . 93 Received Heat Transfer 491 | . 12 60 419 Siege Activations . | . . . . Martial Activations . | . . . . Shielding Activations . | . . . . Robots Disrupted . | . . . . Combat Hostiles . | . . . . Robots Corrupted . | . . . . Combat Hostiles . | . . . . Parts Fried 1 | . . . 1 Impact Corruptions 2 | . . . 2 Robots Melted 1 | . . . 1 Combat Hostiles 1 | . . . 1 Parts Melted 4 | . . 1 3 Heat Transferred 2775 | . . 481 2294 Parts Sabotaged . | . . . . Parts Stolen . | . . . . Parts Stripped . | . . . . Power Chain Reactions . | . . . . Alert | -11 -10 -10 -8 ------- Run | Yrd Mat Sub Mat Maximum Alert Level 1 | . . . 1 Low Security (%) 80 | 100 100 . 75 Level 1 19 | . . . 24 Level 2 . | . . . . Level 3 . | . . . . Level 4 . | . . . . Level 5 . | . . . . High Security . | . . . . Max Security . | . . . . Peak Influence 330 | . . . 330 Initial . | . . . . Average 75 | . . . 94 Influence Increases 646 | . . . 646 Destroy 0b10 Robot/C 380 | . . . 380 Destroy 0b10 Robot/NC 50 | . . . 50 Destroy Leader 134 | . . . 134 Successful Hack 4 | . . . 4 Disable Machine 30 | . . . 30 Destroy Structure 3 | . . . 3 Lose Combat Pursuer 45 | . . . 45 Influence Decreases 316 | . . . 316 Time Decay 316 | . . . 316 Squads Dispatched 3 | . 1 . 2 Investigation 1 | . . . 1 Extermination . | . . . . Reinforcement 2 | . 1 . 1 Assault . | . . . . Garrison . | . . . . Intercept . | . . . . Searches Triggered . | . . . . Construction Impeded . | . . . . Haulers Reinforced . | . . . . Active Scanning Responses . | . . . . Cargo Convoy Interrupts . | . . . . Stealth | -11 -10 -10 -8 --------- Run | Yrd Mat Sub Mat Distress Signals 5 | . 1 . 4 Communications Jammed . | . . . . Distress Signals . | . . . . Times Spotted 41 | . 2 2 37 Peak Tracking Total 5 | . 1 1 5 Tactical Retreats 2 | . . . 2 Traps | -11 -10 -10 -8 ------- Run | Yrd Mat Sub Mat Traps Triggered 3 | . . . 3 Indirectly . | . . . . Trap Hack Attempts . | . . . . Triggered . | . . . . Disarmed . | . . . . Reprogrammed . | . . . . Reused . | . . . . Traps Extracted . | . . . . Installed . | . . . . Triggered . | . . . . Machines | -11 -10 -10 -8 ---------- Run | Yrd Mat Sub Mat Machines Disabled 2 | . . . 2 Max in Single Turn 1 | . . . 1 Machines Repaired . | . . . . Machines Dismantled . | . . . . Machines Sabotaged . | . . . . Overloaded Fab Kills . | . . . . Hacking | -11 -10 -10 -8 --------- Run | Yrd Mat Sub Mat Machines Accessed 3 | . . 1 2 Terminals 1 | . . . 1 Fabricators . | . . . . Repair Stations . | . . . . Recycling Units . | . . . . Scanalyzers 1 | . . . 1 Garrison Access . | . . . . Total Hacks 7 | . . 3 4 Successful 7 | . . 3 4 Failed . | . . . . Catastrophic . | . . . . Database Lockouts . | . . . . Manual . | . . . . Terminals 3 | . . . 3 Fabricators . | . . . . Repair Stations . | . . . . Recycling Units . | . . . . Scanalyzers 1 | . . . 1 Garrison Access . | . . . . Terminal Hacks 6 | . . 3 3 Record 5 | . . 3 2 Zone Layout 1 | . . . 1 Fabricator Hacks . | . . . . Repair Station Hacks . | . . . . Recycling Unit Hacks . | . . . . Scanalyzer 1 | . . . 1 Retrieve Study 1 | . . . 1 Garrison Access Hacks . | . . . . Unauthorized Hacks . | . . . . Terminals . | . . . . Fabricators . | . . . . Repair Stations . | . . . . Recycling Units . | . . . . Scanalyzers . | . . . . Garrison Access . | . . . . Data Cores Recovered 1 | . . . 1 Used . | . . . . Hacking Detections . | . . . . Full Trace Events . | . . . . Feedback Events . | . . . . Feedback Blocked . | . . . . Robot Schematics Acquired . | . . . . Robots Built . | . . . . Authchips . | . . . . Time . | . . . . Total Robot Build Rating . | . . . . Part Schematics Acquired . | . . . . Parts Built . | . . . . Authchips . | . . . . Time . | . . . . Total Part Build Rating . | . . . . Part Studies Acquired . | . . . . Parts Repaired . | . . . . Time . | . . . . Parts Recycled . | . . . . Recycled Matter . | . . . . Retrieved Matter . | . . . . Retrieved Components . | . . . . Parts Scanalyzed . | . . . . Part Schematics Acquired . | . . . . Parts Damaged . | . . . . Bothacking | -11 -10 -10 -8 ------------ Run | Yrd Mat Sub Mat Used RIF Installer . | . . . . Robots Hacked . | . . . . Non-combat . | . . . . Combat . | . . . . Robot Hacks Applied . | . . . . Relay Couplers Released . | . . . . Fabnet Peak Effective % . | . . . . Robots Rewired . | . . . . Allies Hacked . | . . . . Hacks Repelled . | . . . . Allies | -11 -10 -10 -8 -------- Run | Yrd Mat Sub Mat Total Allies . | . . . . Largest Group . | . . . . Highest-Rated Group . | . . . . Highest-Rated Ally . | . . . . Total Orders . | . . . . Ally Attacks . | . . . . Total Damage . | . . . . Kills . | . . . . Allies Corrupted . | . . . . Allies Melted . | . . . . Intel | -11 -10 -10 -8 ------- Run | Yrd Mat Sub Mat Active Infowar (turns) 1381 | . . 416 965 Optics 1191 | . . 416 775 Sensors 383 | . . . 383 Robot Analysis Total . | . . . . Derelict Logs Recovered 1 | . . 1 . Drone Launches . | . . . . Drone Recoveries . | . . . . Exploration | -11 -10 -10 -8 ------------- Run | Yrd Mat Sub Mat Turns Passed 2016 | 45 232 648 1091 Spaces Moved 1271 | 35 141 501 594 Core 15 | 14 . . 1 Treads . | . . . . Legs 1077 | 21 141 501 414 Wheels . | . . . . Hover 179 | . . . 179 Flight . | . . . . Fastest Speed 42 | 50 120 120 42 Average Speed 110 | 92 120 120 101 Slowest Speed 190 | 120 120 120 190 Overloaded Moves . | . . . . Propulsion Burnouts . | . . . . Robots Hopped . | . . . . Potential Cave-ins . | . . . . Cave-ins Triggered . | . . . . Exploration Rate (%) 26 | 4 19 26 55 Regions Visited 3 Branch Regions 1 Pre-discovered Areas . | . . . . Known Exits Taken . | . . . . Unknown Exits Taken 3 | 1 1 1 . Scrap Searched . | . . . . Spaces Dug . | . . . . Terrain Destroyed . | . . . . Melee . | . . . . Projectile . | . . . . AOE . | . . . . Terrain Rammed . | . . . . Walls Destroyed . | . . . . Machines Disabled . | . . . . Actions | -11 -10 -10 -8 --------- Run | Yrd Mat Sub Mat Total 1673 | 46 204 527 896 Wait 180 | 8 57 4 111 Move 1268 | 34 140 500 594 Hop . | . . . . Pick Up 9 | . 2 1 6 Fast Attach 28 | 4 2 2 20 Attach 1 | . . . 1 Detach . | . . . . Swap 8 | . 1 . 7 Drop 29 | . 2 1 26 Fire 107 | . . 10 97 Melee 5 | . . . 5 Ram . | . . . . Kick 1 | . . . 1 Crush . | . . . . Escape Stasis . | . . . . Rewire . | . . . . Trap . | . . . . Miscellaneous 37 | . . 9 28 Route ------- -11/Scrapyard -10/Materials -10/Subcaves (discovered 2 exits: *Mat / [Scr]) -8/Materials (discovered 1 exit: [*Fac]) History --------- Turn | Location | Event 15 | -11/Scrapyard | Discovered new exit (range 14) 22 | -11/Scrapyard | Upgraded with Propulsion slot (x1) 46 | -11/Scrapyard | Entered Materials 46 | -10/Materials | Upgraded with Utility slot (x1) 46 | -10/Materials | Upgraded with Weapon slot (x1) 47 | -10/Materials | Met a group of wandering Federalists 89 | -10/Materials | Discovered new exit (range 13) 278 | -10/Materials | Entered Subcaves 279 | -10/Subcaves | Continued accompanying wandering Federalists (5) 306 | -10/Subcaves | Build established: Mutant 608 | -10/Subcaves | Visited Clippyterm 612 | -10/Subcaves | Learned Research machine intel 667 | -10/Subcaves | Learned Materials emergency access door positions 794 | -10/Subcaves | A swath of the cavern ceiling suddenly collapsed 900 | -10/Subcaves | Discovered new exit (range 9) 926 | -10/Subcaves | Entered Materials 928 | -8/Materials | Reached level 2 984 | -8/Materials | Upgraded with Utility slot (x1) 1263 | -8/Materials | Reached level 3 1273 | -8/Materials | Upgraded with Utility slot (x1) 1282 | -8/Materials | Upgraded with Utility slot (x1) 1773 | -8/Materials | Reached level 4 1783 | -8/Materials | Upgraded with Propulsion slot (x1) 1921 | -8/Materials | Discovered new exit (range 9) 1952 | -8/Materials | Core integrity fell below 50% 1998 | -8/Materials | Core integrity fell below 20% 2017 | -8/Materials | Destroyed by H-61 Shepherd with Heavy Assault Cannon Last Messages --------------- 01937_ Slug penetrates Wall. 01940_ Knocked back. 01951_ Triggered Alarm Trap. 01951_ T-07 Excavator system corrupted by crushing effect. 01951_ An alarm sounds. 01951_ ALERT: Alarm triggered, dispatching investigation squad. 01952_ Acquired 5 matter. 01952_ T-07 Excavator system terminally corrupted. 01967_ System corrupted: Matter fused (-10). 01980_ Critical hit (Burn: +28). 01992_ Slug penetrates Wall. 01993_ M-13 Machinist repairs G-47 Trooper. 01995_ G-47 Trooper destroyed. 01997_ Knocked back. 02001_ G-47 Trooper destroyed. 02002_ Knocked back. 02007_ Slug penetrates Wall. 02008_ G-47 Trooper destroyed. 02011_ Critical hit (Burn: +27). 02013_ K-01 Serf collects debris. Map ----- +----------------------------------------------------+ | | | | | | | | | | | | | | | | | | | | | | | | | | | | | | | ??????????????????????????#??????????????????????? | | ??????????????????########;#??????##########?????? | | ??????????????????# #??????# #?????? | | ??????????????????# ######## #?????? | | ??????????????????# # ## #?????? | | ??????????????????# !+ ## #?????? | | ??????????????????# # ## #?????? | | ??????????????????# # ## #?????? | | ??????????????????# %# ## = #?????? | | ??????????????????# % %# ## #?????? | | ??????????????????# @ # ## #?????? | | ??????????????########;+#!;#""+########+########## | | ????????????# !!%%= % | | ??????????# " < %%Hm k | | ????????????# *%%g=u % | | ????????????####+###""######;## ################ | | ????????????????? #?????#### #??????????????? | | ??????????????? ][ ?????????# #??????????????? | | ?????????????? ][ ?????????# #??########????? | | ????????????? ] ?????????# #??#]]!!!!#????? | | ?????????????#######??????????# #??#]]!!!!#????? | | ?????????????????????????????## #??# #???## | | ??????????????????? [####### ### ##### | | ?????????????????? = =[ | | ?????????????????? [ =%* !!!! | | ?????????????????? = % !!%!! | | ?????????????????????? ####### ###+########## | | ?????????????????????????????###+##??# =! #?## | | ?????????????????????????????????????# !*""" #??# | | ?????????????????????????????????????# [ """ #??# | | ?????????????????????????????????????# """ #??# | | ?????????????????????????????????????# #??# | | ?????????????????????????????????????# "" #??# | | ?????????????????????????????????????# S"" #??# | | ?????????????????????????????????????# "" #??# | +----------------------------------------------------+ Best States ------------- Heat Dissipation 57 Energy Generation 18 Energy Capacity 275 Matter Stores 300 Matter Capacity 300 Sight Range 21 Robot Scan Range 19 Terrain Scan Density 10 Evasion (%) 56 Targeting Accuracy 12 Defensive Hacking 10 Item Schematics ----------------- None Robot Schematics ------------------ None Fabricated ------------ Nothing Repaired ---------- Nothing Studied --------- None Alien Tech Used ----------------- None Achievements -------------- Spot Them First Challenges ------------ None RPGLIKE | -11 -10 -10 -8 --------- Run | Yrd Mat Sub Mat Levels Raised 3 | . . . 3 XP Earned 8150 | 3000 . 1000 4150 XP Spent 7490 | 700 1910 . 4880 Upgrades 19 | 5 6 . 8 Propulsion Slot 2 | 1 . . 1 Utility Slot 4 | . 1 . 3 Weapon Slot 1 | . 1 . . Core Integrity 3 | 1 . . 2 Heat Dissipation 3 | 1 2 . . Mass Support 2 | . . . 2 Inventory Capacity 2 | . 2 . . Sensor Range 2 | 2 . . . Protomatter Created 474 | . . 33 441 Integrity Restored 726 | . . 174 552 Core 726 | . . 174 552 Protomatter Decayed 349 | . . 145 204 Game ------ Seed XenonVariableThermoblaster Manual? 0 Play Time 00:26:52 Cumulative 44.3 hours Start 2025.11.14 @ 19:31:44 End 2025.11.14 @ 19:55:02 Sessions 1 Manual Loads 0 Difficulty Rogue Special Mode Winter2019/RPGLIKE Game No. 92 Rogue 92 Adventurer 0 Explorer 0 Win Type - Total 0 Types 0/0/0/0/0/0/0/0/0/0 Lore% 15 Gallery% 31 Achievement% 20 Wizard Run 0 Options --------- Layout 0 ASCII 0 Keyboard 0 Movement Mouse Keybinds 0 Fullscreen 2 Font 18/SmallcapsGlow Map View 76x50 Zoom Use 0% Tactical HUD 1 Map Filters NONE Filters NONE Steam 1 RUN: 495f8412-cee0-4642-917d-9d35db2b9536